[Event "*** Titled Tuesday Blitz"]
[Site "Chess.com"]
[Date "2018.04.03"]
[Round "1"]
[White "Orest_Vovk"]
[Black "ChessWarrior7197"]
[Result "0-1"]
[WhiteElo "2352"]
[BlackElo "2669"]
[TimeControl "180+2"]
[EndTime "13:08:48 PDT"]
[Termination "ChessWarrior7197 won by checkmate"]

1. g4 {[%clk 0:03:01.9]} 1... d5 {[%clk 0:02:59.7]} 2. h3 {[%clk 0:03:02.1]}
2... c5 {[%clk 0:02:58.2]} 3. Bg2 {[%clk 0:03:03.3]} 3... Nc6 {[%clk 0:02:58.6]}
4. c4 {[%clk 0:03:04.2]} 4... d4 {[%clk 0:02:57.8]} 5. Bxc6+ {[%clk 0:03:06]}
5... bxc6 {[%clk 0:02:58.4]} 6. Qa4 {[%clk 0:03:07.5]} 6... Bd7 {[%clk
0:02:55.4]} 7. d3 {[%clk 0:03:06.3]} 7... e5 {[%clk 0:02:52.9]} 8. Nf3 {[%clk
0:03:07.6]} 8... Bd6 {[%clk 0:02:53.3]} 9. Nbd2 {[%clk 0:03:08.9]} 9... Qc7
{[%clk 0:02:40]} 10. Ne4 {[%clk 0:03:09.5]} 10... Be7 {[%clk 0:02:40]} 11. b3
{[%clk 0:03:05.4]} 11... Nf6 {[%clk 0:02:38.3]} 12. Nxf6+ {[%clk 0:03:02.8]}
12... Bxf6 {[%clk 0:02:40.2]} 13. Ba3 {[%clk 0:03:00]} 13... Be7 {[%clk
0:02:40.8]} 14. Nd2 {[%clk 0:02:59.6]} 14... f5 {[%clk 0:02:36.6]} 15. f3 {[%clk
0:02:53.4]} 15... O-O {[%clk 0:02:31.3]} 16. gxf5 {[%clk 0:02:53.6]} 16... Bxf5
{[%clk 0:02:33.2]} 17. O-O-O {[%clk 0:02:49.5]} 17... a5 {[%clk 0:02:28.7]} 18.
Rdg1 {[%clk 0:02:46.7]} 18... Rfb8 {[%clk 0:02:28.9]} 19. Kc2 {[%clk 0:02:36.3]}
19... Qc8 {[%clk 0:02:28.3]} 20. Bc1 {[%clk 0:02:07.2]} 20... Rb4 {[%clk
0:02:28.3]} 21. Qa3 {[%clk 0:02:08.6]} 21... a4 {[%clk 0:02:29.4]} 22. Qb2
{[%clk 0:02:07.7]} 22... Bxh3 {[%clk 0:02:29.5]} 23. Ne4 {[%clk 0:02:01.4]}
23... Bf5 {[%clk 0:02:28.4]} 24. Bh6 {[%clk 0:01:36.1]} 24... Bg6 {[%clk
0:02:24.5]} 25. Bg5 {[%clk 0:01:19.6]} 25... Bxg5 {[%clk 0:02:20.2]} 26. Rxg5
{[%clk 0:01:18.4]} 26... axb3+ {[%clk 0:02:01.3]} 27. axb3 {[%clk 0:01:18.7]}
27... Bxe4 {[%clk 0:02:03.1]} 28. fxe4 {[%clk 0:01:19.1]} 28... Qf8 {[%clk
0:02:04.3]} 29. Ra1 {[%clk 0:01:02.3]} 29... Rab8 {[%clk 0:02:03.3]} 30. Rf5
{[%clk 0:00:42.5]} 30... Qe7 {[%clk 0:02:00]} 31. Ra3 {[%clk 0:00:36.8]} 31...
g6 {[%clk 0:02:00]} 32. Rf3 {[%clk 0:00:34]} 32... Qg5 {[%clk 0:01:58.9]} 33.
Qa1 {[%clk 0:00:26.4]} 33... Qg2 {[%clk 0:01:55.6]} 34. Qe1 {[%clk 0:00:18]}
34... R4b7 {[%clk 0:01:49.1]} 35. Rf2 {[%clk 0:00:17.7]} 35... Qg5 {[%clk
0:01:46.7]} 36. Qf1 {[%clk 0:00:17.1]} 36... Qd8 {[%clk 0:01:33.3]} 37. Rf6
{[%clk 0:00:14.3]} 37... Qb6 {[%clk 0:01:32.2]} 38. Qh3 {[%clk 0:00:13.6]} 38...
Qb4 {[%clk 0:01:24.9]} 39. Qe6+ {[%clk 0:00:14.3]} 39... Kh8 {[%clk 0:01:17.2]}
40. Qxe5 {[%clk 0:00:15.6]} 40... Kg8 {[%clk 0:00:45.5]} 41. Qe6+ {[%clk
0:00:15.3]} 41... Kg7 {[%clk 0:00:46.8]} 42. Qe5 {[%clk 0:00:16.2]} 42... Qxa3
{[%clk 0:00:45.8]} 43. Rxc6+ {[%clk 0:00:08.9]} 43... Kg8 {[%clk 0:00:46.6]} 44.
Qe6+ {[%clk 0:00:06.8]} 44... Rf7 {[%clk 0:00:47.6]} 45. Rc7 {[%clk 0:00:07.3]}
45... Qxb3+ {[%clk 0:00:48.1]} 46. Kd2 {[%clk 0:00:08.8]} 46... Qc3+ {[%clk
0:00:48.7]} 47. Kd1 {[%clk 0:00:09.7]} 47... Rb1# {[%clk 0:00:50.6]} 0-1

[Event "*** Titled Tuesday Blitz"]
[Site "Chess.com"]
[Date "2018.04.03"]
[Round "1"]
[White "Jbd735"]
[Black "Fins0905"]
[Result "0-1"]
[WhiteElo "2228"]
[BlackElo "2569"]
[TimeControl "180+2"]
[EndTime "13:08:55 PDT"]
[Termination "Fins0905 won by checkmate"]

1. d4 {[%clk 0:03:01.4]} 1... g6 {[%clk 0:02:56.3]} 2. Nf3 {[%clk 0:03:01.1]}
2... Bg7 {[%clk 0:02:57.1]} 3. c3 {[%clk 0:03:01.3]} 3... d6 {[%clk 0:02:55.1]}
4. e4 {[%clk 0:02:59.2]} 4... Nf6 {[%clk 0:02:55.3]} 5. Bd3 {[%clk 0:02:58]}
5... O-O {[%clk 0:02:55.9]} 6. O-O {[%clk 0:02:56.4]} 6... Nc6 {[%clk
0:02:51.6]} 7. h3 {[%clk 0:02:47.2]} 7... e5 {[%clk 0:02:50.8]} 8. d5 {[%clk
0:02:37.4]} 8... Ne7 {[%clk 0:02:45.4]} 9. c4 {[%clk 0:02:38.6]} 9... Nd7 {[%clk
0:02:45.5]} 10. Nc3 {[%clk 0:02:39.8]} 10... f5 {[%clk 0:02:40.1]} 11. Bd2
{[%clk 0:02:08.5]} 11... f4 {[%clk 0:02:22.3]} 12. Nh2 {[%clk 0:02:04.9]} 12...
g5 {[%clk 0:02:18.9]} 13. b4 {[%clk 0:02:01.1]} 13... Nf6 {[%clk 0:02:17.3]} 14.
Rc1 {[%clk 0:01:58.3]} 14... h5 {[%clk 0:02:16.1]} 15. Be2 {[%clk 0:01:52.9]}
15... Qe8 {[%clk 0:01:48.4]} 16. Nb5 {[%clk 0:01:52.4]} 16... Qd7 {[%clk
0:01:43.5]} 17. f3 {[%clk 0:01:11]} 17... c6 {[%clk 0:01:17.8]} 18. Nc3 {[%clk
0:01:02.1]} 18... Ng6 {[%clk 0:01:14.5]} 19. Qb3 {[%clk 0:00:57.2]} 19... Kh8
{[%clk 0:01:06.6]} 20. Rfd1 {[%clk 0:00:54.9]} 20... Qe7 {[%clk 0:00:56.5]} 21.
Be1 {[%clk 0:00:51]} 21... g4 {[%clk 0:00:56.5]} 22. fxg4 {[%clk 0:00:48.4]}
22... hxg4 {[%clk 0:00:58.4]} 23. Nxg4 {[%clk 0:00:47.4]} 23... Nxg4 {[%clk
0:00:59]} 24. Bxg4 {[%clk 0:00:47.3]} 24... Bxg4 {[%clk 0:00:58.3]} 25. hxg4
{[%clk 0:00:49.2]} 25... f3 {[%clk 0:00:59.9]} 26. Rd3 {[%clk 0:00:39.9]} 26...
fxg2 {[%clk 0:00:57.2]} 27. Rh3+ {[%clk 0:00:40.4]} 27... Kg8 {[%clk 0:00:57.1]}
28. dxc6 {[%clk 0:00:33.4]} 28... bxc6 {[%clk 0:00:55.4]} 29. c5+ {[%clk
0:00:33.9]} 29... Rf7 {[%clk 0:00:56.9]} 30. Rf3 {[%clk 0:00:25.4]} 30... Nf4
{[%clk 0:00:52.8]} 31. cxd6 {[%clk 0:00:20.9]} 31... Qxd6 {[%clk 0:00:52.4]} 32.
Bf2 {[%clk 0:00:19.7]} 32... Qg6 {[%clk 0:00:50.6]} 33. Rg3 {[%clk 0:00:05.6]}
33... Rd8 {[%clk 0:00:45.6]} 34. Rd1 {[%clk 0:00:05.2]} 34... Rxd1+ {[%clk
0:00:43.8]} 35. Qxd1 {[%clk 0:00:05.4]} 35... Qe6 {[%clk 0:00:30.2]} 36. Bc5
{[%clk 0:00:03.6]} 36... Rd7 {[%clk 0:00:27.7]} 37. Qf3 {[%clk 0:00:03.5]} 37...
Rd3 {[%clk 0:00:26.9]} 38. Qxd3 {[%clk 0:00:03.6]} 38... Nxd3 {[%clk 0:00:26.9]}
39. Rxd3 {[%clk 0:00:05.5]} 39... Qxg4 {[%clk 0:00:26.6]} 40. Rd2 {[%clk
0:00:05]} 40... Qf3 {[%clk 0:00:20.1]} 41. Ne2 {[%clk 0:00:03.1]} 41... Qf1+
{[%clk 0:00:20.8]} 42. Kh2 {[%clk 0:00:04]} 42... Bh6 {[%clk 0:00:19.7]} 43.
Rd8+ {[%clk 0:00:03.7]} 43... Kf7 {[%clk 0:00:18.9]} 44. Ng3 {[%clk 0:00:03.8]}
44... Bf4 {[%clk 0:00:17.7]} 45. Rf8+ {[%clk 0:00:04.5]} 45... Kg7 {[%clk
0:00:18]} 46. Bf2 {[%clk 0:00:02.1]} 46... Qh1# {[%clk 0:00:18.5]} 0-1

[Event "*** Titled Tuesday Blitz"]
[Site "Chess.com"]
[Date "2018.04.03"]
[Round "1"]
[White "simplerXiao"]
[Black "DACF2905"]
[Result "1-0"]
[WhiteElo "2470"]
[BlackElo "2037"]
[TimeControl "180+2"]
[EndTime "13:09:09 PDT"]
[Termination "simplerXiao won by checkmate"]

1. e4 {[%clk 0:02:58.2]} 1... c5 {[%clk 0:03:00.6]} 2. Nf3 {[%clk 0:02:57.7]}
2... e6 {[%clk 0:03:01.5]} 3. d4 {[%clk 0:02:50.8]} 3... cxd4 {[%clk 0:03:02.4]}
4. Nxd4 {[%clk 0:02:52.1]} 4... a6 {[%clk 0:03:02.8]} 5. Be2 {[%clk 0:02:51.4]}
5... Nc6 {[%clk 0:03:02.7]} 6. O-O {[%clk 0:02:50.6]} 6... Qc7 {[%clk 0:03:03]}
7. Re1 {[%clk 0:02:47.6]} 7... Nf6 {[%clk 0:03:03.5]} 8. Nc3 {[%clk 0:02:45.3]}
8... Bb4 {[%clk 0:03:03.6]} 9. Nxc6 {[%clk 0:02:31.4]} 9... bxc6 {[%clk
0:02:59.1]} 10. Qd4 {[%clk 0:02:24.8]} 10... Bd6 {[%clk 0:02:49.7]} 11. g3
{[%clk 0:02:18.8]} 11... Be5 {[%clk 0:02:50.1]} 12. Qd3 {[%clk 0:02:17.8]} 12...
d5 {[%clk 0:02:36.9]} 13. exd5 {[%clk 0:02:06.8]} 13... cxd5 {[%clk 0:02:37.4]}
14. Bf3 {[%clk 0:01:59.6]} 14... O-O {[%clk 0:02:33]} 15. Bg2 {[%clk 0:01:45.5]}
15... Bb7 {[%clk 0:02:32.6]} 16. f4 {[%clk 0:01:33.6]} 16... Bxc3 {[%clk
0:02:15]} 17. bxc3 {[%clk 0:01:34.1]} 17... Rac8 {[%clk 0:02:15.6]} 18. Rb1
{[%clk 0:01:27.1]} 18... Ba8 {[%clk 0:02:10.2]} 19. Rb3 {[%clk 0:01:07]} 19...
a5 {[%clk 0:02:09.5]} 20. f5 {[%clk 0:01:05.5]} 20... e5 {[%clk 0:02:04.2]} 21.
Bg5 {[%clk 0:00:59]} 21... e4 {[%clk 0:02:03.8]} 22. Qd4 {[%clk 0:00:56.3]}
22... a4 {[%clk 0:01:07.8]} 23. Qxa4 {[%clk 0:00:51.8]} 23... Nd7 {[%clk
0:00:56.1]} 24. Qd4 {[%clk 0:00:50.2]} 24... f6 {[%clk 0:00:56.6]} 25. Bf4
{[%clk 0:00:50.1]} 25... Qc6 {[%clk 0:00:47.4]} 26. Bf1 {[%clk 0:00:49.3]} 26...
Ne5 {[%clk 0:00:27.8]} 27. Bxe5 {[%clk 0:00:39.6]} 27... fxe5 {[%clk 0:00:28.5]}
28. Qxe5 {[%clk 0:00:41.1]} 28... Rce8 {[%clk 0:00:29.4]} 29. Qd4 {[%clk
0:00:33.9]} 29... Qc8 {[%clk 0:00:26.7]} 30. Bh3 {[%clk 0:00:30.2]} 30... Rf6
{[%clk 0:00:25.2]} 31. Reb1 {[%clk 0:00:29.8]} 31... Qa6 {[%clk 0:00:17.6]} 32.
Bf1 {[%clk 0:00:27.6]} 32... Qxa2 {[%clk 0:00:17.5]} 33. R3b2 {[%clk 0:00:27.5]}
33... Qa5 {[%clk 0:00:17.6]} 34. Bb5 {[%clk 0:00:25.8]} 34... Ref8 {[%clk
0:00:18]} 35. Bd7 {[%clk 0:00:26.1]} 35... Kh8 {[%clk 0:00:18.2]} 36. Rb8 {[%clk
0:00:25.4]} 36... h6 {[%clk 0:00:18.4]} 37. Be6 {[%clk 0:00:26.4]} 37... Qc7
{[%clk 0:00:18]} 38. Rxf8+ {[%clk 0:00:20.7]} 38... Rxf8 {[%clk 0:00:18.6]} 39.
Ra1 {[%clk 0:00:21.1]} 39... Bb7 {[%clk 0:00:18.4]} 40. Ra7 {[%clk 0:00:21.1]}
40... Qc6 {[%clk 0:00:19.2]} 41. Kg2 {[%clk 0:00:17.4]} 41... Ra8 {[%clk
0:00:19.9]} 42. Rxa8+ {[%clk 0:00:16.2]} 42... Bxa8 {[%clk 0:00:20.9]} 43. Qe5
{[%clk 0:00:17.4]} 43... d4 {[%clk 0:00:20.2]} 44. f6 {[%clk 0:00:18.7]} 44...
e3+ {[%clk 0:00:20.7]} 45. Kh3 {[%clk 0:00:20]} 45... Qg2+ {[%clk 0:00:21]} 46.
Kg4 {[%clk 0:00:21.2]} 46... h5+ {[%clk 0:00:20.4]} 47. Kg5 {[%clk 0:00:21.8]}
47... Qe4 {[%clk 0:00:19.3]} 48. fxg7+ {[%clk 0:00:22.2]} 48... Kh7 {[%clk
0:00:20.3]} 49. g8=Q# {[%clk 0:00:23.3]} 1-0

[Event "*** Titled Tuesday Blitz"]
[Site "Chess.com"]
[Date "2018.04.03"]
[Round "1"]
[White "jefferyx"]
[Black "FMAntonio"]
[Result "1-0"]
[WhiteElo "2750"]
[BlackElo "2384"]
[TimeControl "180+2"]
[EndTime "13:09:16 PDT"]
[Termination "jefferyx won by resignation"]

1. d4 {[%clk 0:02:58.5]} 1... Nf6 {[%clk 0:03:00.2]} 2. c4 {[%clk 0:02:58.1]}
2... e6 {[%clk 0:02:59.5]} 3. Nf3 {[%clk 0:02:59.7]} 3... d5 {[%clk 0:02:57.3]}
4. Nc3 {[%clk 0:03:00.9]} 4... c5 {[%clk 0:02:55.8]} 5. cxd5 {[%clk 0:03:01.2]}
5... Nxd5 {[%clk 0:02:56.5]} 6. e4 {[%clk 0:03:02.7]} 6... Nxc3 {[%clk
0:02:57.3]} 7. bxc3 {[%clk 0:03:04.6]} 7... cxd4 {[%clk 0:02:58.2]} 8. cxd4
{[%clk 0:03:06.5]} 8... Bb4+ {[%clk 0:02:58.8]} 9. Bd2 {[%clk 0:03:08.2]} 9...
Bxd2+ {[%clk 0:03:00]} 10. Qxd2 {[%clk 0:03:10.1]} 10... O-O {[%clk 0:03:01.1]}
11. Bc4 {[%clk 0:03:11.8]} 11... Nd7 {[%clk 0:03:01.4]} 12. O-O {[%clk
0:03:12.5]} 12... b6 {[%clk 0:03:02.3]} 13. a4 {[%clk 0:03:13.3]} 13... Bb7
{[%clk 0:03:01.5]} 14. Rfe1 {[%clk 0:03:14.8]} 14... Nf6 {[%clk 0:02:56]} 15.
Bd3 {[%clk 0:03:15.8]} 15... h6 {[%clk 0:02:55.3]} 16. h3 {[%clk 0:03:10.6]}
16... Qe7 {[%clk 0:02:24.4]} 17. a5 {[%clk 0:03:06.4]} 17... bxa5 {[%clk
0:02:07.9]} 18. Qxa5 {[%clk 0:03:02.8]} 18... Rfc8 {[%clk 0:02:01.2]} 19. Rab1
{[%clk 0:02:54.6]} 19... Rc7 {[%clk 0:01:49.2]} 20. Rbd1 {[%clk 0:01:54.8]}
20... Rac8 {[%clk 0:01:47.1]} 21. Bb1 {[%clk 0:01:54.8]} 21... Ba8 {[%clk
0:01:46.7]} 22. d5 {[%clk 0:01:34]} 22... exd5 {[%clk 0:01:47]} 23. exd5 {[%clk
0:01:35.9]} 23... Qd6 {[%clk 0:01:47.4]} 24. Nh4 {[%clk 0:01:19.3]} 24... Rc5
{[%clk 0:01:12.5]} 25. Qxa7 {[%clk 0:00:58.6]} 25... Rxd5 {[%clk 0:01:08.4]} 26.
Rxd5 {[%clk 0:00:51.6]} 26... Qxd5 {[%clk 0:01:05.5]} 27. Ba2 {[%clk 0:00:52.8]}
27... Qb7 {[%clk 0:00:15.8]} 28. Qa3 {[%clk 0:00:41.7]} 28... Kh8 {[%clk
0:00:13.1]} 29. Re7 {[%clk 0:00:35]} 29... Qc6 {[%clk 0:00:09.2]} 30. Bxf7
{[%clk 0:00:31.5]} 30... Qc1+ {[%clk 0:00:06.5]} 31. Qxc1 {[%clk 0:00:32.1]}
31... Rxc1+ {[%clk 0:00:08.4]} 32. Kh2 {[%clk 0:00:33.9]} 32... Be4 {[%clk
0:00:05.9]} 33. f3 {[%clk 0:00:30.8]} 33... Bd3 {[%clk 0:00:06.3]} 34. Rb7
{[%clk 0:00:14.9]} 34... Kh7 {[%clk 0:00:06.5]} 35. Be6 {[%clk 0:00:16.2]} 35...
Rc5 {[%clk 0:00:04.7]} 36. g4 {[%clk 0:00:17.5]} 36... Ne8 {[%clk 0:00:02.6]}
37. Nf5 {[%clk 0:00:10.9]} 37... Bxf5 {[%clk 0:00:03.1]} 38. Bxf5+ {[%clk
0:00:12.8]} 38... Kg8 {[%clk 0:00:03.7]} 39. Bg6 {[%clk 0:00:12.2]} 39... Rc8
{[%clk 0:00:04.4]} 40. Kg3 {[%clk 0:00:09.3]} 40... Nf6 {[%clk 0:00:05.1]} 41.
h4 {[%clk 0:00:10.3]} 41... Rf8 {[%clk 0:00:05]} 42. Re7 {[%clk 0:00:10.8]}
42... Nd5 {[%clk 0:00:05.4]} 43. Re5 {[%clk 0:00:10.9]} 43... Nf4 {[%clk
0:00:05.7]} 44. Bf5 {[%clk 0:00:11]} 44... g5 {[%clk 0:00:03.2]} 45. Re7 {[%clk
0:00:08.5]} 45... Nd5 {[%clk 0:00:03.3]} 46. Be6+ {[%clk 0:00:09.4]} 46... Kh8
{[%clk 0:00:04.5]} 47. Bxd5 {[%clk 0:00:10.6]} 47... gxh4+ {[%clk 0:00:06]} 48.
Kxh4 {[%clk 0:00:12.5]} 1-0

[Event "*** Titled Tuesday Blitz"]
[Site "Chess.com"]
[Date "2018.04.03"]
[Round "1"]
[White "FitnessBen"]
[Black "Karina_Oparina"]
[Result "1-0"]
[WhiteElo "2503"]
[BlackElo "2140"]
[TimeControl "180+2"]
[EndTime "13:09:17 PDT"]
[Termination "FitnessBen won on time"]

1. e4 {[%clk 0:03:01.3]} 1... c6 {[%clk 0:02:59.8]} 2. d4 {[%clk 0:03:01.2]}
2... d5 {[%clk 0:03:00.3]} 3. exd5 {[%clk 0:03:02.6]} 3... cxd5 {[%clk
0:03:01.2]} 4. Bd3 {[%clk 0:03:04.1]} 4... Nc6 {[%clk 0:03:00.8]} 5. c3 {[%clk
0:03:05.5]} 5... Qc7 {[%clk 0:03:00.3]} 6. Ne2 {[%clk 0:03:05.2]} 6... e6 {[%clk
0:02:52.4]} 7. Bf4 {[%clk 0:03:02.8]} 7... Bd6 {[%clk 0:02:52.9]} 8. Bxd6 {[%clk
0:03:02.7]} 8... Qxd6 {[%clk 0:02:53.5]} 9. O-O {[%clk 0:03:04.5]} 9... Nf6
{[%clk 0:02:46.3]} 10. Nd2 {[%clk 0:03:03.8]} 10... O-O {[%clk 0:02:45.3]} 11.
Nf3 {[%clk 0:03:04.2]} 11... Rb8 {[%clk 0:02:40.8]} 12. a4 {[%clk 0:03:02.9]}
12... e5 {[%clk 0:02:30]} 13. dxe5 {[%clk 0:03:02.3]} 13... Nxe5 {[%clk
0:02:30.5]} 14. Nxe5 {[%clk 0:03:03.7]} 14... Qxe5 {[%clk 0:02:31.1]} 15. Nd4
{[%clk 0:03:05.2]} 15... Be6 {[%clk 0:02:27.4]} 16. Re1 {[%clk 0:03:02.9]} 16...
Qd6 {[%clk 0:02:11.6]} 17. Qf3 {[%clk 0:02:57.5]} 17... b6 {[%clk 0:01:53.9]}
18. Qg3 {[%clk 0:02:48.7]} 18... Qxg3 {[%clk 0:01:51.1]} 19. hxg3 {[%clk
0:02:50.6]} 19... Bd7 {[%clk 0:01:42]} 20. Bb5 {[%clk 0:02:48.5]} 20... Rfe8
{[%clk 0:01:31.8]} 21. Bxd7 {[%clk 0:02:43.8]} 21... Nxd7 {[%clk 0:01:31.6]} 22.
Nc6 {[%clk 0:02:44.8]} 22... Ra8 {[%clk 0:01:12.4]} 23. Ne7+ {[%clk 0:02:34.2]}
23... Kf8 {[%clk 0:01:11.7]} 24. Nxd5 {[%clk 0:02:35.4]} 24... Nc5 {[%clk
0:01:10]} 25. Rxe8+ {[%clk 0:02:24.5]} 25... Rxe8 {[%clk 0:01:09.5]} 26. b4
{[%clk 0:02:25.8]} 26... Nb3 {[%clk 0:01:05.3]} 27. Rb1 {[%clk 0:02:21.5]} 27...
Nd2 {[%clk 0:01:04.9]} 28. Rd1 {[%clk 0:02:22.1]} 28... Nc4 {[%clk 0:01:00.7]}
29. Nf4 {[%clk 0:02:14.7]} 29... Nb2 {[%clk 0:00:58]} 30. Rd7 {[%clk 0:02:07.8]}
30... Re7 {[%clk 0:00:57]} 31. Rd8+ {[%clk 0:01:51.2]} 31... Re8 {[%clk
0:00:57.2]} 32. Rd7 {[%clk 0:01:49.7]} 32... Re7 {[%clk 0:00:58]} 33. Rd8+
{[%clk 0:01:18.1]} 33... Re8 {[%clk 0:00:58.4]} 34. Rxe8+ {[%clk 0:01:11.5]}
34... Kxe8 {[%clk 0:00:58.8]} 35. a5 {[%clk 0:01:13]} 35... bxa5 {[%clk
0:00:55.3]} 36. bxa5 {[%clk 0:01:14.7]} 36... Kd7 {[%clk 0:00:49.7]} 37. Kf1
{[%clk 0:00:48.9]} 37... Kc6 {[%clk 0:00:33.9]} 38. Ke2 {[%clk 0:00:49.7]} 38...
Kb5 {[%clk 0:00:21]} 39. Nh5 {[%clk 0:00:49.1]} 39... g6 {[%clk 0:00:21.1]} 40.
Nf6 {[%clk 0:00:49.7]} 40... Kxa5 {[%clk 0:00:20.8]} 41. Kd2 {[%clk 0:00:45.8]}
41... Nc4+ {[%clk 0:00:20.4]} 42. Kd3 {[%clk 0:00:46]} 42... Kb5 {[%clk
0:00:19.8]} 43. Ne8 {[%clk 0:00:36]} 43... Kc5 {[%clk 0:00:14.7]} 44. Nf6 {[%clk
0:00:32.1]} 44... Nd6 {[%clk 0:00:12.4]} 45. Nxh7 {[%clk 0:00:31.3]} 45... a5
{[%clk 0:00:12.1]} 46. Ng5 {[%clk 0:00:30.8]} 46... a4 {[%clk 0:00:12.2]} 47.
Kc2 {[%clk 0:00:31.8]} 47... Kc4 {[%clk 0:00:12.3]} 48. Nf3 {[%clk 0:00:32.1]}
48... a3 {[%clk 0:00:11.4]} 49. Nd2+ {[%clk 0:00:32.9]} 49... Kd5 {[%clk
0:00:08.1]} 50. Kb3 {[%clk 0:00:34.1]} 50... Kc5 {[%clk 0:00:03.1]} 51. Kxa3
{[%clk 0:00:34.6]} 1-0

[Event "*** Titled Tuesday Blitz"]
[Site "Chess.com"]
[Date "2018.04.03"]
[Round "1"]
[White "indfraeng"]
[Black "kjzsdu"]
[Result "0-1"]
[WhiteElo "1817"]
[BlackElo "2427"]
[TimeControl "180+2"]
[EndTime "13:09:27 PDT"]
[Termination "kjzsdu won by checkmate"]

1. d4 {[%clk 0:03:01.5]} 1... Nf6 {[%clk 0:03:00.6]} 2. c4 {[%clk 0:03:01.7]}
2... e6 {[%clk 0:03:01.9]} 3. Nc3 {[%clk 0:03:01.8]} 3... Bb4 {[%clk 0:03:02.9]}
4. Qc2 {[%clk 0:03:02.2]} 4... c5 {[%clk 0:03:03.4]} 5. dxc5 {[%clk 0:03:01.9]}
5... Na6 {[%clk 0:03:04.7]} 6. a3 {[%clk 0:03:01.9]} 6... Bxc3+ {[%clk
0:03:05.1]} 7. Qxc3 {[%clk 0:03:02.6]} 7... Nxc5 {[%clk 0:03:06.9]} 8. b4 {[%clk
0:03:03.4]} 8... Nce4 {[%clk 0:02:34.9]} 9. Qb2 {[%clk 0:03:02.8]} 9... d5
{[%clk 0:02:35.5]} 10. e3 {[%clk 0:02:48.6]} 10... dxc4 {[%clk 0:02:34.8]} 11.
Bxc4 {[%clk 0:02:48.8]} 11... O-O {[%clk 0:02:35.8]} 12. Nf3 {[%clk 0:02:45.7]}
12... a6 {[%clk 0:02:36]} 13. O-O {[%clk 0:02:45.4]} 13... b5 {[%clk 0:02:36.9]}
14. Bb3 {[%clk 0:02:44.7]} 14... Bb7 {[%clk 0:02:38]} 15. Bd2 {[%clk 0:02:43.5]}
15... Rc8 {[%clk 0:02:34.5]} 16. Rac1 {[%clk 0:02:42.2]} 16... Qb6 {[%clk
0:02:33.8]} 17. Qd4 {[%clk 0:02:38.4]} 17... Qxd4 {[%clk 0:02:32.7]} 18. exd4
{[%clk 0:02:39.2]} 18... Nxd2 {[%clk 0:02:32.6]} 19. Nxd2 {[%clk 0:02:39.9]}
19... Rfd8 {[%clk 0:02:33.3]} 20. Rxc8 {[%clk 0:02:37.5]} 20... Bxc8 {[%clk
0:02:30]} 21. Nf3 {[%clk 0:02:36.7]} 21... Bb7 {[%clk 0:02:29.9]} 22. Rc1 {[%clk
0:02:31.3]} 22... Bxf3 {[%clk 0:02:24.8]} 23. gxf3 {[%clk 0:02:33.2]} 23... g5
{[%clk 0:02:15.4]} 24. Rc6 {[%clk 0:02:32]} 24... Rxd4 {[%clk 0:02:15.9]} 25.
Rxa6 {[%clk 0:02:31.7]} 25... Rd3 {[%clk 0:02:16]} 26. Bc2 {[%clk 0:02:12.9]}
26... Rxf3 {[%clk 0:02:16.8]} 27. a4 {[%clk 0:02:11.5]} 27... bxa4 {[%clk
0:01:48.8]} 28. Bxa4 {[%clk 0:02:03.3]} 28... Ra3 {[%clk 0:01:16.1]} 29. b5
{[%clk 0:02:01.2]} 29... Nd5 {[%clk 0:01:16.4]} 30. Bc2 {[%clk 0:01:06.6]} 30...
Rc3 {[%clk 0:00:39.9]} 31. b6 {[%clk 0:00:54.9]} 31... Nxb6 {[%clk 0:00:26.5]}
32. Bxh7+ {[%clk 0:00:52.4]} 32... Kxh7 {[%clk 0:00:28.3]} 33. Rxb6 {[%clk
0:00:52.7]} 33... Kg6 {[%clk 0:00:24.9]} 34. Kg2 {[%clk 0:00:52.6]} 34... g4
{[%clk 0:00:25.8]} 35. Rb4 {[%clk 0:00:51.7]} 35... Kg5 {[%clk 0:00:24.6]} 36.
Rb5+ {[%clk 0:00:50.6]} 36... f5 {[%clk 0:00:23.6]} 37. Rb8 {[%clk 0:00:49.8]}
37... e5 {[%clk 0:00:22.3]} 38. Rg8+ {[%clk 0:00:50.2]} 38... Kf4 {[%clk
0:00:22.8]} 39. Ra8 {[%clk 0:00:40.4]} 39... Rc2 {[%clk 0:00:22.1]} 40. Ra4+
{[%clk 0:00:33.2]} 40... e4 {[%clk 0:00:21.3]} 41. Ra3 {[%clk 0:00:33.9]} 41...
Kg5 {[%clk 0:00:18.2]} 42. Kg3 {[%clk 0:00:21.1]} 42... Re2 {[%clk 0:00:16.5]}
43. Ra8 {[%clk 0:00:20.2]} 43... f4+ {[%clk 0:00:15.4]} 44. Kg2 {[%clk
0:00:21.2]} 44... e3 {[%clk 0:00:16.6]} 45. Rg8+ {[%clk 0:00:21.8]} 45... Kf5
{[%clk 0:00:17.5]} 46. Re8 {[%clk 0:00:23.1]} 46... Rxf2+ {[%clk 0:00:13.3]} 47.
Kg1 {[%clk 0:00:24.1]} 47... Rd2 {[%clk 0:00:14.6]} 48. Kf1 {[%clk 0:00:23.5]}
48... Kg5 {[%clk 0:00:13.7]} 49. Rg8+ {[%clk 0:00:21.7]} 49... Kf5 {[%clk
0:00:14]} 50. Re8 {[%clk 0:00:20.9]} 50... Rxh2 {[%clk 0:00:12.8]} 51. Rf8+
{[%clk 0:00:20.7]} 51... Ke4 {[%clk 0:00:13.5]} 52. Re8+ {[%clk 0:00:22.6]}
52... Kf3 {[%clk 0:00:14.8]} 53. Kg1 {[%clk 0:00:23.1]} 53... Rd2 {[%clk
0:00:15]} 54. Kh1 {[%clk 0:00:22.6]} 54... g3 {[%clk 0:00:14.9]} 55. Rxe3+
{[%clk 0:00:21.5]} 55... fxe3 {[%clk 0:00:15.1]} 56. Kg1 {[%clk 0:00:22.8]}
56... Rd1# {[%clk 0:00:16.5]} 0-1